Workbook

Sheet Expo-Quad
B1: Taylor Polynomials vs the Center:
A2: Quadratic Approximations to the Exponential Function
B4: This DIGMath module lets you investigate
B5: how the quadratic Taylor approximation
C6: to the exponential function
C7: y = ex
B8: changes with the center point c.
A15: Click each item below for suggestions and investigations
C16: Item 1
C17: Item 2
C18: Item 3 | M18: The graph of the function y = | P18: ex
C19: Item 4
M20: Select the center (point of tangency) x0 = | Q20: =-2+dx*O22 -> 2.41 | R20: for the parabola
O22: 147 | P22: =#REF!+O22*dx -> 
A23: To access/download all the DIGMath Apps for Calculus
A24: Click this link: | C24: DIGMath for Calculus
A26: Created by: Sheldon P. Gordon
A27: Farmingdale State College
A28: Development of this module was supported by the
A29: NSF's Division of Undergraduate Education
A30: under grants DUE-0310123 and DUE-0442160.

Sheet Expo-Cubic
A1: Taylor Polynomials vs the Center:
A2: Cubic Approximations to the Exponential Function
B4: This DIGMath module lets you investigate
B5: how the quadratic Taylor approximation
C6: to the exponential function
D7: y = ex
B8: changes with the center point c.
A15: Click each item below for suggestions and investigations
C16: Item 1
C17: Item 2
C18: Item 3 | J18: The graph of the function y = | M18: ex
C19: Item 4
J20: Select the center (point of tangency) x0 = | N20: =-2+dx*L22 -> 1.21 | O20: for the cubic
L22: 107 | M22: =#REF!+L22*dx -> 
A23: To access/download all the DIGMath Apps for Calculus
A24: Click this link: | C24: DIGMath for Calculus
A26: Created by: Sheldon P. Gordon
A27: Farmingdale State College
A28: Development of this module was supported by the
A29: NSF's Division of Undergraduate Education
A30: under grants DUE-0310123 and DUE-0442160.

Sheet Sine-Linear
B1: Taylor Polynomials vs the Center:
A2: Linear Approximations to the Sine Function
B4: This DIGMath module lets you investigate
B5: how the linear Taylor approximation
C6: to the sine function
B7: changes with the "center" point c.
A14: Click each item below for suggestions and investigations
C15: Item 1
C16: Item 2
C17: Item 3
C18: Item 4 | M18: The graph of the function y = | P18: sin x
M20: Select the center (point of tangency) x0 = | Q20: =-PI()+dxx*O22 -> -0.9110618695 | R20: for the line
A22: To access/download all the DIGMath Apps for Calculus | O22: 71 | P22: =#REF!+O22*dx -> 
A23: Click this link: | C23: DIGMath for Calculus
A25: Created by: Sheldon P. Gordon
A26: Farmingdale State College
A27: Development of this module was supported by the
A28: NSF's Division of Undergraduate Education
A29: under grants DUE-0310123 and DUE-0442160.

Sheet Sine-Cubic
B1: Taylor Polynomials vs the Center:
A2: Cubic Approximations to the Sine Function
B4: This DIGMath module lets you investigate
B5: how the cubic Taylor approximation
C6: to the sine function
B7: changes with the "center" point c.
A14: Click each item below for suggestions and investigations
C15: Item 1
C16: Item 2
C17: Item 3
C18: Item 4 | K18: The graph of the function y = | N18: sin x
K20: Select the center (point of tangency) x0 = | O20: =-PI()+dxx*M22 -> 0.7853981634 | P20: for the cubic
A22: To access/download all the DIGMath Apps for Calculus | M22: 125 | N22: =#REF!+M22*dx -> 
A23: Click this link: | C23: DIGMath for Calculus
A25: Created by: Sheldon P. Gordon
A26: Farmingdale State College
A27: Development of this module was supported by the
A28: NSF's Division of Undergraduate Education
A29: under grants DUE-0310123 and DUE-0442160.

Sheet Cosine-Quad
B1: Taylor Polynomials vs the Center:
A2: Quadratic Approximations to the Cosine Function
B4: This DIGMath module lets you investigate
B5: how the quadratic Taylor approximation
C6: to the cosine function
B7: changes with the center point c.
A12: Click each item below for suggestions and investigations
C13: Item 1
C14: Item 2
C15: Item 3
C16: Item 4
K18: The graph of the function y = | N18: cos x
A20: To access/download all the DIGMath Apps for Calculus | K20: Select the center (point of tangency) x0 = | O20: =-PI()+dxx*M22 -> -0.7225663103 | P20: for the parabola
A21: Click this link: | C21: DIGMath for Calculus
M22: 77 | N22: =#REF!+M22*dx -> 
A23: Created by: Sheldon P. Gordon
A24: Farmingdale State College
A25: Development of this module was supported by the
A26: NSF's Division of Undergraduate Education
A27: under grants DUE-0310123 and DUE-0442160.

Sheet log-Quad
B1: Taylor Polynomials vs the Center:
A2: Quadratic Approximations to the Natural Log Function
B4: This DIGMath module lets you investigate
B5: how the quadratic Taylor approximation
B6: to the natural logarithm function
B7: changes with the center point c.
A12: Click each item below for suggestions and investigations
C13: Item 1
C14: Item 2
C15: Item 3
C16: Item 4
K18: The graph of the function y = | N18: ln x
A20: To access/download all the DIGMath Apps for Calculus | K20: Select the center (point of tangency) x0 = | O20: =0.1+dxxx*M22 -> 0.19 | P20: for the parabola
A21: Click this link: | C21: DIGMath for Calculus
M22: 10 | N22: =#REF!+M22*dx -> 
A23: Created by: Sheldon P. Gordon
A24: Farmingdale State College
A25: Development of this module was supported by the
A26: NSF's Division of Undergraduate Education
A27: under grants DUE-0310123 and DUE-0442160.

Sheet Sheet1

Sheet Sheet2
A1: Expo | H1: Sine | O1: Cosine | U1: ln (x)
A2: x | B2: f(x) | C2: delta x = | D2: =6/200 -> 0.03 | H2: x | I2: f(x) | J2: delta x = | K2: =2*PI()/200 -> 0.03141592654 | O2: x | P2: f(x) | U2: x | V2: f(x) | X2: delta x = | Y2: =(1.9-0.1)/200 -> 0.009
A3: =-2 -> -2.00 | B3: =EXP(A3) -> 0.1353352832 | H3: =-PI() -> -3.14 | I3: =SIN(H3) -> -1.225148455e-16 | O3: =-PI() -> -3.14 | P3: =COS(O3) -> -1 | U3: 0.10 | V3: =LN(U3) -> -2.302585093
A4: =A3+dx -> -1.97 | B4: =EXP(A4) -> 0.1394568562 | C4: 3 points | E4: 4 points | H4: =H3+dxx -> -3.11 | I4: =SIN(H4) -> -0.03141075908 | J4: 2 points | L4: 4 points | O4: =O3+dxx -> -3.11 | P4: =COS(O4) -> -0.9995065604 | U4: =U3+dxxx -> 0.11 | V4: =LN(U4) -> -2.216407397
A5: -1.94 | B5: 0.1437039498 | C5: -2 | D5: =EXP(c0)*(1+(C5-c0)+(C5-c0)^2/2) -> 70.30038737 | E5: -2 | F5: =EXP(c00)*(1+(E5-c00)+(E5-c00)^2/2+(E5-c00)^3/6) -> -8.620613524 | H5: -3.08 | I5: -0.06279051953 | J5: =-PI() -> -3.141592654 | K5: =SIN(cc0)+COS(cc0)*(J5-cc0) -> -2.157263063 | L5: =-PI() -> -3.141592654 | M5: =SIN(cc00)+COS(cc00)*(L5-cc00)-SIN(cc00)*(L5-cc00)^2/2-COS(cc00)*(L5-cc00)^3/6 -> -0.3849703088 | O5: -3.08 | P5: -0.9980267284 | Q5: 3 points | U5: 0.12 | V5: -2.137070655 | W5: 3 points
A6: -1.91 | B6: 0.1480803866 | C6: 1 | D6: =EXP(c0)*(1+(C6-c0)+(C6-c0)^2/2) -> 6.502790007 | E6: 0 | F6: =EXP(c00)*(1+(E6-c00)+(E6-c00)^2/2+(E6-c00)^3/6) -> 0.7605362254 | H6: -3.05 | I6: -0.09410831332 | J6: =PI() -> 3.141592654 | K6: =SIN(cc0)+COS(cc0)*(J6-cc0) -> 1.693745531 | L6: -1 | M6: =SIN(cc00)+COS(cc00)*(L6-cc00)-SIN(cc00)*(L6-cc00)^2/2-COS(cc00)*(L6-cc00)^3/6 -> -1.011647112 | O6: -3.05 | P6: -0.9955619646 | Q6: =-PI() -> -3.141592654 | R6: =COS(ccc0)*(1-(Q6-ccc0)^2/2)-SIN(ccc0)*(Q6-ccc0) -> -3.044327895 | U6: 0.13 | V6: -2.063568193 | W6: 0.1 | X6: =LN(cccc0) + 1/cccc0*(W6-cccc0) -1/cccc0^2*(W6-cccc0)^2/2 -> -2.246603783
A7: -1.88 | B7: 0.1525901058 | C7: 4 | D7: =EXP(c0)*(1+(C7-c0)+(C7-c0)^2/2) -> 42.91084295 | E7: 2 | F7: =EXP(c00)*(1+(E7-c00)+(E7-c00)^2/2+(E7-c00)^3/6) -> 7.324758867 | H7: -3.02 | I7: -0.1253332336 | L7: 1 | M7: =SIN(cc00)+COS(cc00)*(L7-cc00)-SIN(cc00)*(L7-cc00)^2/2-COS(cc00)*(L7-cc00)^3/6 -> 0.841405912 | O7: -3.02 | P7: -0.9921147013 | Q7: 0 | R7: =COS(ccc0)*(1-(Q7-ccc0)^2/2)-SIN(ccc0)*(Q7-ccc0) -> 1.032135472 | U7: 0.14 | V7: -1.995100393 | W7: 1 | X7: =LN(cccc0) + 1/cccc0*(W7-cccc0) -1/cccc0^2*(W7-cccc0)^2/2 -> -6.48483093
A8: -1.85 | B8: 0.1572371663 | E8: 4 | F8: =EXP(c00)*(1+(E8-c00)+(E8-c00)^2/2+(E8-c00)^3/6) -> 37.89993162 | H8: -2.98 | I8: -0.156434465 | L8: =PI() -> 3.141592654 | M8: =SIN(cc00)+COS(cc00)*(L8-cc00)-SIN(cc00)*(L8-cc00)^2/2-COS(cc00)*(L8-cc00)^3/6 -> -1.131201552 | O8: -2.98 | P8: -0.9876883406 | Q8: =PI() -> 3.141592654 | R8: =COS(ccc0)*(1-(Q8-ccc0)^2/2)-SIN(ccc0)*(Q8-ccc0) -> -2.294700675 | U8: 0.15 | V8: -1.931021537 | W8: 1.9 | X8: =LN(cccc0) + 1/cccc0*(W8-cccc0) -1/cccc0^2*(W8-cccc0)^2/2 -> -33.16073121
A9: -1.82 | B9: 0.1620257509 | C9: trace point | E9: trace point | H9: -2.95 | I9: -0.1873813146 | J9: trace point | L9: trace point | O9: -2.95 | P9: -0.9822872507 | U9: 0.15 | V9: -1.870802677
A10: -1.79 | B10: 0.1669601697 | C10: =c0 -> 2.41 | D10: =EXP(C10) -> 11.13396115 | E10: =c00 -> 1.21 | F10: =EXP(E10) -> 3.353484653 | H10: -2.92 | I10: -0.2181432414 | J10: =cc0 -> -0.9110618695 | K10: =SIN(J10) -> -0.7901550124 | L10: =cc00 -> 0.7853981634 | M10: =SIN(L10) -> 0.7071067812 | O10: -2.92 | P10: -0.9759167619 | Q10: trace point | U10: 0.16 | V10: -1.814005078 | W10: trace point
A11: -1.76 | B11: 0.1720448638 | H11: -2.89 | I11: -0.2486898872 | O11: -2.89 | P11: -0.9685831611 | Q11: =ccc0 -> -0.7225663103 | R11: =COS(Q11) -> 0.7501110696 | U11: 0.17 | V11: -1.760260802 | W11: =cccc0 -> 0.19 | X11: =LN(W11) -> -1.660731207
A12: -1.73 | B12: 0.17728441 | H12: -2.86 | I12: -0.278991106 | O12: -2.86 | P12: -0.9602936857 | U12: 0.18 | V12: -1.709258248
A13: -1.70 | B13: 0.1826835241 | H13: -2.83 | I13: -0.3090169944 | O13: -2.83 | P13: -0.9510565163 | U13: 0.19 | V13: -1.660731207
A14: -1.67 | B14: 0.1882470656 | C14: c = | D14: -2 | E14: c = | F14: -2 | H14: -2.80 | I14: -0.3387379202 | J14: c = | K14: -3 | L14: c = | M14: -3 | O14: -2.80 | P14: -0.940880769 | U14: 0.20 | V14: -1.614450454
A15: -1.64 | B15: 0.1939800423 | C15: -2 | D15: =EXP(D$14)*(1+(C15-D$14)+(C15-D$14)^2/2) -> 0.1353352832 | E15: -2 | F15: =EXP(-2)*(1+(E15+2)+(E15+2)^2/2+(E15+2)^3/6) -> 0.1353352832 | H15: -2.76 | I15: -0.3681245527 | J15: -3 | K15: =SIN(K$14) +COS(K$14)*((J15-K$14)) -> -0.1411200081 | L15: =-PI() -> -3.141592654 | M15: =SIN(M$14)+COS(M$14)*(L15-M$14)-SIN(M$14)*(L15-M$14)^2/2-COS(M$14)*(L15-M$14)^3/6 -> 1.892541362e-06 | O15: -2.76 | P15: -0.9297764859 | Q15: c = | R15: -3 | S15: series 3 | U15: 0.21 | V15: -1.570217199 | W15: c = | X15: 0.1 | Y15: series 3
A16: -1.61 | B16: 0.1998876141 | C16: 1 | D16: =EXP(D$14)*(1+(C16-D$14)+(C16-D$14)^2/2) -> 1.150349908 | E16: 0 | F16: =EXP(c00)*(1+(E16-c00)+(E16-c00)^2/2+(E16-c00)^3/6) -> 0.7605362254 | H16: -2.73 | I16: -0.3971478906 | J16: 3 | K16: =SIN(K$14) +COS(K$14)*((J16-K$14)) -> -6.081074988 | L16: -1 | M16: =SIN(M$14)+COS(M$14)*(L16-M$14)-SIN(M$14)*(L16-M$14)^2/2-COS(M$14)*(L16-M$14)^3/6 -> -0.5188749897 | O16: -2.73 | P16: -0.9177546257 | Q16: =-PI() -> -3.141592654 | R16: =COS(R$15)*(1-(Q16-R$15)^2/2)-SIN(R$15)*(Q16-R$15) -> -1.000050131 | U16: 0.22 | V16: -1.527857925 | W16: 0.1 | X16: =LN(X$15) + 1/X$15*(W16-X$15) -1/X$15^2*(W16-X$15)^2/2 -> -2.302585093
A17: -1.58 | B17: 0.2059750982 | C17: 4 | D17: =EXP(D$14)*(1+(C17-D$14)+(C17-D$14)^2/2) -> 3.383382081 | E17: 2 | F17: =EXP(c00)*(1+(E17-c00)+(E17-c00)^2/2+(E17-c00)^3/6) -> 7.324758867 | H17: -2.70 | I17: -0.4257792916 | L17: 1 | M17: =SIN(M$14)+COS(M$14)*(L17-M$14)-SIN(M$14)*(L17-M$14)^2/2-COS(M$14)*(L17-M$14)^3/6 -> 7.587790034 | O17: -2.70 | P17: -0.9048270525 | Q17: 0 | R17: =COS(R$15)*(1-(Q17-R$15)^2/2)-SIN(R$15)*(Q17-R$15) -> 3.888333762 | U17: 0.23 | V17: -1.48722028 | W17: 1 | X17: =LN(X$15) + 1/X$15*(W17-X$15) -1/X$15^2*(W17-X$15)^2/2 -> -33.80258509
A18: -1.55 | B18: 0.2122479738 | E18: 4 | F18: =EXP(c00)*(1+(E18-c00)+(E18-c00)^2/2+(E18-c00)^3/6) -> 37.89993162 | H18: -2.67 | I18: -0.4539904997 | L18: =PI() -> 3.141592654 | M18: =SIN(M$14)+COS(M$14)*(L18-M$14)-SIN(M$14)*(L18-M$14)^2/2-COS(M$14)*(L18-M$14)^3/6 -> 34.66311721 | O18: -2.67 | P18: -0.8910065242 | Q18: =PI() -> 3.141592654 | R18: =COS(R$15)*(1-(Q18-R$15)^2/2)-SIN(R$15)*(Q18-R$15) -> 18.54755196 | U18: 0.24 | V18: -1.448169765 | W18: 1.9 | X18: =LN(X$15) + 1/X$15*(W18-X$15) -1/X$15^2*(W18-X$15)^2/2 -> -146.3025851
A19: -1.52 | B19: 0.218711887 | C19: c = | D19: -1.5 | E19: c = | F19: -1.5 | H19: -2.64 | I19: -0.4817536741 | J19: c = | K19: -2.5 | L19: c = | M19: -3.5 | O19: -2.64 | P19: -0.87630668 | U19: 0.24 | V19: -1.410587054
A20: -1.49 | B20: 0.2253726555 | C20: -2 | D20: =EXP(D$19)*(1+(C20-D$19)+(C20-D$19)^2/2) -> 0.1394563501 | E20: -2 | F20: =EXP(-1.5)*(1+(E20+1.5)+(E20+1.5)^2/2+(E20+1.5)^3/6) -> 0.1348078051 | H20: -2.61 | I20: -0.5090414158 | J20: -3 | K20: =SIN(K$19) +COS(K$19)*((J20-K$19)) -> -0.1979003363 | L20: =-PI() -> -3.141592654 | M20: =SIN(M$19)+COS(M$19)*(L20-M$19)-SIN(M$19)*(L20-M$19)^2/2-COS(M$19)*(L20-M$19)^3/6 -> -0.0001941351494 | O20: -2.61 | P20: -0.860742027 | Q20: c = | R20: -2.5 | S20: series 4 | U20: 0.25 | V20: -1.37436579 | W20: c = | X20: 0.3 | Y20: series 4
A21: -1.46 | B21: 0.2322362747 | C21: 1 | D21: =EXP(D$19)*(1+(C21-D$19)+(C21-D$19)^2/2) -> 1.478237311 | E21: 0 | F21: =EXP(-1.5)*(1+(E21+1.5)+(E21+1.5)^2/2+(E21+1.5)^3/6) -> 0.9343575456 | H21: -2.58 | I21: -0.535826795 | J21: 3 | K21: =SIN(K$19) +COS(K$19)*((J21-K$19)) -> -5.00476203 | L21: -1 | M21: =SIN(M$19)+COS(M$19)*(L21-M$19)-SIN(M$19)*(L21-M$19)^2/2-COS(M$19)*(L21-M$19)^3/6 -> -0.6478667872 | O21: -2.58 | P21: -0.8443279255 | Q21: =-PI() -> -3.141592654 | R21: =COS(R$20)*(1-(Q21-R$20)^2/2)-SIN(R$20)*(Q21-R$20) -> -1.020227114 | U21: 0.26 | V21: -1.339410775 | W21: 0.1 | X21: =LN(X$20) + 1/X$20*(W21-X$20) -1/X$20^2*(W21-X$20)^2/2 -> -2.092861693
A22: -1.43 | B22: 0.2393089222 | C22: 4 | D22: =EXP(D$19)*(1+(C22-D$19)+(C22-D$19)^2/2) -> 4.825189713 | E22: 2 | F22: =EXP(-1.5)*(1+(E22+1.5)+(E22+1.5)^2/2+(E22+1.5)^3/6) -> 3.965208888 | H22: -2.54 | I22: -0.5620833779 | L22: 1 | M22: =SIN(M$19)+COS(M$19)*(L22-M$19)-SIN(M$19)*(L22-M$19)^2/2-COS(M$19)*(L22-M$19)^3/6 -> 6.807483893 | O22: -2.54 | P22: -0.8270805743 | Q22: 0 | R22: =COS(R$20)*(1-(Q22-R$20)^2/2)-SIN(R$20)*(Q22-R$20) -> 3.198610543 | U22: 0.27 | V22: -1.305636458 | W22: 1 | X22: =LN(X$20) + 1/X$20*(W22-X$20) -1/X$20^2*(W22-X$20)^2/2 -> -1.592861693
A23: -1.40 | B23: 0.2465969639 | E23: 4 | F23: =EXP(-1.5)*(1+(E23+1.5)+(E23+1.5)^2/2+(E23+1.5)^3/6) -> 11.01240311 | H23: -2.51 | I23: -0.5877852523 | L23: =PI() -> 3.141592654 | M23: =SIN(M$19)+COS(M$19)*(L23-M$19)-SIN(M$19)*(L23-M$19)^2/2-COS(M$19)*(L23-M$19)^3/6 -> 32.11950402 | O23: -2.51 | P23: -0.8090169944 | Q23: =PI() -> 3.141592654 | R23: =COS(R$20)*(1-(Q23-R$20)^2/2)-SIN(R$20)*(Q23-R$20) -> 15.32441875 | U23: 0.28 | V23: -1.272965676 | W23: 1.9 | X23: =LN(X$20) + 1/X$20*(W23-X$20) -1/X$20^2*(W23-X$20)^2/2 -> -10.09286169
A24: -1.37 | B24: 0.2541069596 | C24: c = | D24: -1 | E24: c = | F24: -1 | H24: -2.48 | I24: -0.6129070537 | J24: c = | K24: -2 | L24: c = | M24: -2 | O24: -2.48 | P24: -0.7901550124 | U24: 0.29 | V24: -1.241328591
A25: -1.34 | B25: 0.2618456686 | C25: -2 | D25: =EXP(D$24)*(1+(C25-D$24)+(C25-D$24)^2/2) -> 0.1839397206 | E25: -2 | F25: =EXP(-1)*(1+(E25+1)+(E25+1)^2/2+(E25+1)^3/6) -> 0.1226264804 | G25: series 6 | H25: -2.45 | I25: -0.6374239897 | J25: -3 | K25: =SIN(K$24) +COS(K$24)*((J25-K$24)) -> -0.4931505903 | L25: =-PI() -> -3.141592654 | M25: =SIN(M$24)+COS(M$24)*(L25-M$24)-SIN(M$24)*(L25-M$24)^2/2-COS(M$24)*(L25-M$24)^3/6 -> 0.05509839259 | O25: -2.45 | P25: -0.7705132428 | Q25: c = | R25: -2 | S25: series 5 | U25: 0.30 | V25: -1.210661792 | W25: c = | X25: 0.6 | Y25: series 5
A26: -1.31 | B26: 0.2698200564 | C26: 1 | D26: =EXP(D$24)*(1+(C26-D$24)+(C26-D$24)^2/2) -> 1.839397206 | E26: 0 | F26: =EXP(-1)*(1+(E26+1)+(E26+1)^2/2+(E26+1)^3/6) -> 0.9810118431 | H26: -2.42 | I26: -0.6613118653 | J26: 3 | K26: =SIN(K$24) +COS(K$24)*((J26-K$24)) -> -2.99003161 | L26: -1 | M26: =SIN(M$24)+COS(M$24)*(L26-M$24)-SIN(M$24)*(L26-M$24)^2/2-COS(M$24)*(L26-M$24)^3/6 -> -0.8014377439 | O26: -2.42 | P26: -0.7501110696 | Q26: =-PI() -> -3.141592654 | R26: =COS(R$25)*(1-(Q26-R$25)^2/2)-SIN(R$25)*(Q26-R$25) -> -1.18302579 | U26: 0.31 | V26: -1.180907531 | W26: 0.1 | X26: =LN(X$25) + 1/X$25*(W26-X$25) -1/X$25^2*(W26-X$25)^2/2 -> -1.691381179
A27: -1.28 | B27: 0.2780373005 | C27: 4 | D27: =EXP(D$24)*(1+(C27-D$24)+(C27-D$24)^2/2) -> 6.805769662 | E27: 2 | F27: =EXP(-1)*(1+(E27+1)+(E27+1)^2/2+(E27+1)^3/6) -> 4.782432735 | H27: -2.39 | I27: -0.6845471059 | L27: 1 | M27: =SIN(M$24)+COS(M$24)*(L27-M$24)-SIN(M$24)*(L27-M$24)^2/2-COS(M$24)*(L27-M$24)^3/6 -> 3.806761249 | O27: -2.39 | P27: -0.7289686274 | Q27: 0 | R27: =COS(R$25)*(1-(Q27-R$25)^2/2)-SIN(R$25)*(Q27-R$25) -> 2.23474169 | U27: 0.32 | V27: -1.152013065 | W27: 1 | X27: =LN(X$25) + 1/X$25*(W27-X$25) -1/X$25^2*(W27-X$25)^2/2 -> -0.06638117932
A28: -1.25 | B28: 0.2865047969 | E28: 4 | F28: =EXP(-1)*(1+(E28+1)+(E28+1)^2/2+(E28+1)^3/6) -> 14.46992469 | H28: -2.36 | I28: -0.7071067812 | L28: =PI() -> 3.141592654 | M28: =SIN(M$24)+COS(M$24)*(L28-M$24)-SIN(M$24)*(L28-M$24)^2/2-COS(M$24)*(L28-M$24)^3/6 -> 18.3974492 | O28: -2.36 | P28: -0.7071067812 | Q28: =PI() -> 3.141592654 | R28: =COS(R$25)*(1-(Q28-R$25)^2/2)-SIN(R$25)*(Q28-R$25) -> 9.75971382 | U28: 0.33 | V28: -1.123930097 | W28: 1.9 | X28: =LN(X$25) + 1/X$25*(W28-X$25) -1/X$25^2*(W28-X$25)^2/2 -> -0.6913811793
A29: -1.22 | B29: 0.2952301669 | C29: c = | D29: -0.5 | E29: c = | F29: -0.5 | H29: -2.32 | I29: -0.7289686274 | J29: c = | K29: -1.5 | L29: c = | M29: -1.5 | O29: -2.32 | P29: -0.6845471059 | U29: 0.33 | V29: -1.096614286
A30: -1.19 | B30: 0.3042212641 | C30: -2 | D30: =EXP(D$29)*(1+(C30-D$29)+(C30-D$29)^2/2) -> 0.3790816623 | E30: -2 | F30: =EXP(-0.5)*(1+(E30+0.5)+(E30+0.5)^2/2+(E30+0.5)^3/6) -> 0.03790816623 | G30: series 7 | H30: -2.29 | I30: -0.7501110696 | J30: -3 | K30: =SIN(K$29) +COS(K$29)*((J30-K$29)) -> -1.103600789 | L30: =-PI() -> -3.141592654 | M30: =SIN(M$29)+COS(M$29)*(L30-M$29)-SIN(M$29)*(L30-M$29)^2/2-COS(M$29)*(L30-M$29)^3/6 -> 0.2825758995 | O30: -2.29 | P30: -0.6613118653 | Q30: c = | R30: -1.5 | S30: series 6 | U30: 0.34 | V30: -1.070024832 | W30: c = | X30: 0.7 | Y30: series 6
A31: -1.16 | B31: 0.3134861809 | C31: 1 | D31: =EXP(D$29)*(1+(C31-D$29)+(C31-D$29)^2/2) -> 2.198673641 | E31: 0 | F31: =EXP(-0.5)*(1+(E31+0.5)+(E31+0.5)^2/2+(E31+0.5)^3/6) -> 0.9982483774 | H31: -2.26 | I31: -0.7705132428 | J31: 3 | K31: =SIN(K$29) +COS(K$29)*((J31-K$29)) -> -0.6791775791 | L31: -1 | M31: =SIN(M$29)+COS(M$29)*(L31-M$29)-SIN(M$29)*(L31-M$29)^2/2-COS(M$29)*(L31-M$29)^3/6 -> -0.8389132041 | O31: -2.26 | P31: -0.6374239897 | Q31: =-PI() -> -3.141592654 | R31: =COS(R$30)*(1-(Q31-R$30)^2/2)-SIN(R$30)*(Q31-R$30) -> -1.662055481 | U31: 0.35 | V31: -1.044124103 | W31: 0.1 | X31: =LN(X$30) + 1/X$30*(W31-X$30) -1/X$30^2*(W31-X$30)^2/2 -> -1.58116474
A32: -1.13 | B32: 0.3230332564 | C32: 4 | D32: =EXP(D$29)*(1+(C32-D$29)+(C32-D$29)^2/2) -> 9.477041558 | E32: 2 | F32: =EXP(-0.5)*(1+(E32+0.5)+(E32+0.5)^2/2+(E32+0.5)^3/6) -> 5.597772547 | H32: -2.23 | I32: -0.7901550124 | L32: 1 | M32: =SIN(M$29)+COS(M$29)*(L32-M$29)-SIN(M$29)*(L32-M$29)^2/2-COS(M$29)*(L32-M$29)^3/6 -> 2.112308388 | O32: -2.23 | P32: -0.6129070537 | Q32: 0 | R32: =COS(R$30)*(1-(Q32-R$30)^2/2)-SIN(R$30)*(Q32-R$30) -> 1.48740033 | U32: 0.36 | V32: -1.018877321 | W32: 1 | X32: =LN(X$30) + 1/X$30*(W32-X$30) -1/X$30^2*(W32-X$30)^2/2 -> -0.01994025006
A33: -1.10 | B33: 0.3328710837 | E33: 4 | F33: =EXP(-0.5)*(1+(E33+0.5)+(E33+0.5)^2/2+(E33+0.5)^3/6) -> 18.68872595 | H33: -2.20 | I33: -0.8090169944 | L33: =PI() -> 3.141592654 | M33: =SIN(M$29)+COS(M$29)*(L33-M$29)-SIN(M$29)*(L33-M$29)^2/2-COS(M$29)*(L33-M$29)^3/6 -> 8.897088715 | O33: -2.20 | P33: -0.5877852523 | Q33: =PI() -> 3.141592654 | R33: =COS(R$30)*(1-(Q33-R$30)^2/2)-SIN(R$30)*(Q33-R$30) -> 3.938707944 | U33: 0.37 | V33: -0.9942522733 | W33: 1.9 | X33: =LN(X$30) + 1/X$30*(W33-X$30) -1/X$30^2*(W33-X$30)^2/2 -> -0.1117769848
A34: -1.07 | B34: 0.3430085174 | C34: c = | D34: 0 | E34: c = | F34: 0 | H34: -2.17 | I34: -0.8270805743 | J34: c = | K34: -1 | L34: c = | M34: -1 | O34: -2.17 | P34: -0.5620833779 | U34: 0.38 | V34: -0.9702190739
A35: -1.04 | B35: 0.353454682 | C35: -2 | D35: =EXP(0)*(1+(C35-0)+(C35-0)^2/2) -> 1 | E35: -2 | F35: =EXP(0)*(1+(E35+0)+(E35+0)^2/2+(E35+0)^3/6) -> -0.3333333333 | G35: series 8 | H35: -2.14 | I35: -0.8443279255 | J35: -3 | K35: =SIN(K$34) +COS(K$34)*((J35-K$34)) -> -1.922075597 | L35: =-PI() -> -3.141592654 | M35: =SIN(M$34)+COS(M$34)*(L35-M$34)-SIN(M$34)*(L35-M$34)^2/2-COS(M$34)*(L35-M$34)^3/6 -> 0.8155874783 | O35: -2.14 | P35: -0.535826795 | Q35: c = | R35: -1 | S35: series 7 | U35: 0.39 | V35: -0.9467499394 | W35: c = | X35: 0.9 | Y35: series 7
A36: =A35+dx -> -1.01 | B36: 0.3642189796 | C36: 1 | D36: =EXP(0)*(1+(C36-0)+(C36-0)^2/2) -> 2.5 | E36: 0 | F36: =EXP(0)*(1+(E36+0)+(E36+0)^2/2+(E36+0)^3/6) -> 1 | H36: =H35+dxx -> -2.10 | I36: -0.860742027 | J36: 3 | K36: =SIN(K$34) +COS(K$34)*((J36-K$34)) -> 1.319738239 | L36: -1 | M36: =SIN(M$34)+COS(M$34)*(L36-M$34)-SIN(M$34)*(L36-M$34)^2/2-COS(M$34)*(L36-M$34)^3/6 -> -0.8414709848 | O36: =O35+dxx -> -2.10 | P36: -0.5090414158 | Q36: =-PI() -> -3.141592654 | R36: =COS(R$35)*(1-(Q36-R$35)^2/2)-SIN(R$35)*(Q36-R$35) -> -2.500812179 | U36: =U35+dxxx -> 0.40 | V36: -0.9238189983 | W36: 0.1 | X36: =LN(X$35) + 1/X$35*(W36-X$35) -1/X$35^2*(W36-X$35)^2/2 -> -1.389311133
A37: -0.98 | B37: 0.3753110989 | C37: 4 | D37: =EXP(0)*(1+(C37-0)+(C37-0)^2/2) -> 13 | E37: 2 | F37: =EXP(0)*(1+(E37+0)+(E37+0)^2/2+(E37+0)^3/6) -> 6.333333333 | H37: -2.07 | I37: -0.87630668 | L37: 1 | M37: =SIN(M$34)+COS(M$34)*(L37-M$34)-SIN(M$34)*(L37-M$34)^2/2-COS(M$34)*(L37-M$34)^3/6 -> 1.201672522 | O37: -2.07 | P37: -0.4817536741 | Q37: 0 | R37: =COS(R$35)*(1-(Q37-R$35)^2/2)-SIN(R$35)*(Q37-R$35) -> 1.111622138 | U37: 0.41 | V37: -0.9014021194 | W37: 1 | X37: =LN(X$35) + 1/X$35*(W37-X$35) -1/X$35^2*(W37-X$35)^2/2 -> -0.0004222440529
A38: -0.95 | B38: 0.3867410235 | E38: 4 | F38: =EXP(0)*(1+(E38+0)+(E38+0)^2/2+(E38+0)^3/6) -> 23.66666667 | H38: -2.04 | I38: -0.8910065242 | L38: =PI() -> 3.141592654 | M38: =SIN(M$34)+COS(M$34)*(L38-M$34)-SIN(M$34)*(L38-M$34)^2/2-COS(M$34)*(L38-M$34)^3/6 -> 2.215861099 | O38: -2.04 | P38: -0.4539904997 | Q38: =PI() -> 3.141592654 | R38: =COS(R$35)*(1-(Q38-R$35)^2/2)-SIN(R$35)*(Q38-R$35) -> -0.608513561 | U38: 0.42 | V38: -0.8794767588 | W38: 1.9 | X38: =LN(X$35) + 1/X$35*(W38-X$35) -1/X$35^2*(W38-X$35)^2/2 -> 0.3884666448
A39: -0.92 | B39: 0.3985190411 | C39: c = | D39: 0.5 | E39: c = | F39: 0.5 | H39: -2.01 | I39: -0.9048270525 | J39: c = | K39: -0.5 | L39: c = | M39: -0.5 | O39: -2.01 | P39: -0.4257792916 | U39: 0.42 | V39: -0.8580218238
A40: -0.89 | B40: 0.4106557528 | C40: -2 | D40: =EXP(0.5)*(1+(C40-0.5)+(C40-0.5)^2/2) -> 2.679172065 | E40: -2 | F40: =EXP(0.5)*(1+(E40-0.5)+(E40-0.5)^2/2+(E40-0.5)^3/6) -> -1.614372911 | G40: series 9 | H40: -1.98 | I40: -0.9177546257 | J40: -3 | K40: =SIN(K$39) +COS(K$39)*((J40-K$39)) -> -2.673381943 | L40: =-PI() -> -3.141592654 | M40: =SIN(M$39)+COS(M$39)*(L40-M$39)-SIN(M$39)*(L40-M$39)^2/2-COS(M$39)*(L40-M$39)^3/6 -> 1.571166671 | O40: -1.98 | P40: -0.3971478906 | Q40: c = | R40: -0.5 | S40: series 8 | U40: 0.43 | V40: -0.837017551 | W40: c = | X40: 1.1 | Y40: series 8
A41: -0.86 | B41: 0.4231620823 | C41: 1 | D41: =EXP(0.5)*(1+(C41-0.5)+(C41-0.5)^2/2) -> 2.679172065 | E41: 0 | F41: =EXP(0.5)*(1+(E41-0.5)+(E41-0.5)^2/2+(E41-0.5)^3/6) -> 0.9961024344 | H41: -1.95 | I41: -0.9297764859 | J41: 3 | K41: =SIN(K$39) +COS(K$39)*((J41-K$39)) -> 2.592113428 | L41: -1 | M41: =SIN(M$39)+COS(M$39)*(L41-M$39)-SIN(M$39)*(L41-M$39)^2/2-COS(M$39)*(L41-M$39)^3/6 -> -0.8400056572 | O41: -1.95 | P41: -0.3681245527 | Q41: =-PI() -> -3.141592654 | R41: =COS(R$40)*(1-(Q41-R$40)^2/2)-SIN(R$40)*(Q41-R$40) -> -3.450755132 | U41: 0.44 | V41: -0.8164453969 | W41: 0.1 | X41: =LN(X$40) + 1/X$40*(W41-X$40) -1/X$40^2*(W41-X$40)^2/2 -> -1.22700387
A42: -0.83 | B42: 0.4360492863 | C42: 4 | D42: =EXP(0.5)*(1+(C42-0.5)+(C42-0.5)^2/2) -> 17.5176635 | E42: 2 | F42: =EXP(0.5)*(1+(E42-0.5)+(E42-0.5)^2/2+(E42-0.5)^3/6) -> 6.904020321 | H42: -1.92 | I42: -0.940880769 | L42: 1 | M42: =SIN(M$39)+COS(M$39)*(L42-M$39)-SIN(M$39)*(L42-M$39)^2/2-COS(M$39)*(L42-M$39)^3/6 -> 0.8826618441 | O42: -1.92 | P42: -0.3387379202 | Q42: 0 | R42: =COS(R$40)*(1-(Q42-R$40)^2/2)-SIN(R$40)*(Q42-R$40) -> 1.007597511 | U42: 0.45 | V42: -0.7962879395 | W42: 1 | X42: =LN(X$40) + 1/X$40*(W42-X$40) -1/X$40^2*(W42-X$40)^2/2 -> 0.0002688574903
A43: -0.80 | B43: 0.4493289641 | E43: 4 | F43: =EXP(0.5)*(1+(E43-0.5)+(E43-0.5)^2/2+(E43-0.5)^3/6) -> 29.29915091 | H43: -1.88 | I43: -0.9510565163 | L43: =PI() -> 3.141592654 | M43: =SIN(M$39)+COS(M$39)*(L43-M$39)-SIN(M$39)*(L43-M$39)^2/2-COS(M$39)*(L43-M$39)^3/6 -> -1.168100694 | O43: -1.88 | P43: -0.3090169944 | Q43: =PI() -> 3.141592654 | R43: =COS(R$40)*(1-(Q43-R$40)^2/2)-SIN(R$40)*(Q43-R$40) -> -3.195442561 | U43: 0.46 | V43: -0.7765287895 | W43: 1.9 | X43: =LN(X$40) + 1/X$40*(W43-X$40) -1/X$40^2*(W43-X$40)^2/2 -> 0.5581200972
A44: -0.77 | B44: 0.4630130683 | C44: c = | D44: 1 | E44: c = | F44: 1 | H44: -1.85 | I44: -0.9602936857 | J44: c = | K44: 0 | L44: c = | M44: 0 | O44: -1.85 | P44: -0.278991106 | U44: 0.47 | V44: -0.7571525105
A45: -0.74 | B45: 0.4771139155 | C45: -2 | D45: =EXP(1)*(1+(C45-1)+(C45-1)^2/2) -> 6.795704571 | E45: -2 | F45: =EXP(1)*(1+(E45-1)+(E45-1)^2/2+(E45-1)^3/6) -> -5.436563657 | G45: Series 10 | H45: -1.82 | I45: -0.9685831611 | J45: -3 | K45: =SIN(K$44) +COS(K$44)*((J45-K$44)) -> -3 | L45: =-PI() -> -3.141592654 | M45: =SIN(M$44)+COS(M$44)*(L45-M$44)-SIN(M$44)*(L45-M$44)^2/2-COS(M$44)*(L45-M$44)^3/6 -> 2.026120126 | O45: -1.82 | P45: -0.2486898872 | Q45: c = | R45: 0 | S45: series 9 | U45: 0.48 | V45: -0.7381445465 | W45: c = | X45: 1.3 | Y45: series 9
A46: -0.71 | B46: 0.4916441975 | C46: 1 | D46: =EXP(1)*(1+(C46-1)+(C46-1)^2/2) -> 2.718281828 | E46: 0 | F46: =EXP(1)*(1+(E46-1)+(E46-1)^2/2+(E46-1)^3/6) -> 0.9060939428 | H46: -1.79 | I46: -0.9759167619 | J46: 3 | K46: =SIN(K$44) +COS(K$44)*((J46-K$44)) -> 3 | L46: -1 | M46: =SIN(M$44)+COS(M$44)*(L46-M$44)-SIN(M$44)*(L46-M$44)^2/2-COS(M$44)*(L46-M$44)^3/6 -> -0.8333333333 | O46: -1.79 | P46: -0.2181432414 | Q46: =-PI() -> -3.141592654 | R46: =COS(R$45)*(1-(Q46-R$45)^2/2)-SIN(R$45)*(Q46-R$45) -> -3.934802201 | U46: 0.49 | V46: -0.7194911559 | W46: 0.1 | X46: =LN(X$45) + 1/X$45*(W46-X$45) -1/X$45^2*(W46-X$45)^2/2 -> -1.086748162
A47: -0.68 | B47: 0.5066169924 | C47: 4 | D47: =EXP(1)*(1+(C47-1)+(C47-1)^2/2) -> 23.10539554 | E47: 2 | F47: =EXP(1)*(1+(E47-1)+(E47-1)^2/2+(E47-1)^3/6) -> 7.248751543 | H47: -1.76 | I47: -0.9822872507 | L47: 1 | M47: =SIN(M$44)+COS(M$44)*(L47-M$44)-SIN(M$44)*(L47-M$44)^2/2-COS(M$44)*(L47-M$44)^3/6 -> 0.8333333333 | O47: -1.76 | P47: -0.1873813146 | Q47: 0 | R47: =COS(R$45)*(1-(Q47-R$45)^2/2)-SIN(R$45)*(Q47-R$45) -> 1 | U47: 0.50 | V47: -0.7011793523 | W47: 1 | X47: =LN(X$45) + 1/X$45*(W47-X$45) -1/X$45^2*(W47-X$45)^2/2 -> 0.004967814763
A48: -0.65 | B48: 0.5220457768 | E48: 4 | F48: =EXP(1)*(1+(E48-1)+(E48-1)^2/2+(E48-1)^3/6) -> 35.33766377 | H48: -1.73 | I48: -0.9876883406 | L48: =PI() -> 3.141592654 | M48: =SIN(M$44)+COS(M$44)*(L48-M$44)-SIN(M$44)*(L48-M$44)^2/2-COS(M$44)*(L48-M$44)^3/6 -> -2.026120126 | O48: -1.73 | P48: -0.156434465 | Q48: =PI() -> 3.141592654 | R48: =COS(R$45)*(1-(Q48-R$45)^2/2)-SIN(R$45)*(Q48-R$45) -> -3.934802201 | U48: 0.51 | V48: -0.6831968497 | W48: 1.9 | X48: =LN(X$45) + 1/X$45*(W48-X$45) -1/X$45^2*(W48-X$45)^2/2 -> 0.6173938503
A49: -0.62 | B49: 0.5379444376 | C49: c = | D49: 1.5 | E49: c = | F49: 1.5 | H49: -1.70 | I49: -0.9921147013 | J49: c = | K49: 0.5 | L49: c = | M49: 0.5 | O49: -1.70 | P49: -0.1253332336 | U49: 0.51 | V49: -0.6655320135
A50: -0.59 | B50: 0.5543272847 | C50: -2 | D50: =EXP(1.5)*(1+(C50-1.5)+(C50-1.5)^2/2) -> 16.24612288 | E50: -2 | F50: =EXP(1.5)*(1+(E50-1.5)+(E50-1.5)^2/2+(E50-1.5)^3/6) -> -15.77928027 | G50: series 11 | H50: -1.67 | I50: -0.9955619646 | J50: -3 | K50: =SIN(K$49) +COS(K$49)*((J50-K$49)) -> -2.592113428 | L50: =-PI() -> -3.141592654 | M50: =SIN(M$49)+COS(M$49)*(L50-M$49)-SIN(M$49)*(L50-M$49)^2/2-COS(M$49)*(L50-M$49)^3/6 -> 1.168100694 | O50: -1.67 | P50: -0.09410831332 | Q50: c = | R50: 0.5 | S50: series 10 | U50: 0.52 | V50: -0.6481738149 | W50: c = | X50: 1.5 | Y50: series 10
A51: -0.56 | B51: 0.5712090638 | C51: 1 | D51: =EXP(1.5)*(1+(C51-1.5)+(C51-1.5)^2/2) -> 2.801055669 | E51: 0 | F51: =EXP(1.5)*(1+(E51-1.5)+(E51-1.5)^2/2+(E51-1.5)^3/6) -> 0.2801055669 | H51: -1.63 | I51: -0.9980267284 | J51: 3 | K51: =SIN(K$49) +COS(K$49)*((J51-K$49)) -> 2.673381943 | L51: -1 | M51: =SIN(M$49)+COS(M$49)*(L51-M$49)-SIN(M$49)*(L51-M$49)^2/2-COS(M$49)*(L51-M$49)^3/6 -> -0.8826618441 | O51: -1.63 | P51: -0.06279051953 | Q51: =-PI() -> -3.141592654 | R51: =COS(R$50)*(1-(Q51-R$50)^2/2)-SIN(R$50)*(Q51-R$50) -> -3.195442561 | U51: 0.53 | V51: -0.6311117896 | W51: 0.1 | X51: =LN(X$50) + 1/X$50*(W51-X$50) -1/X$50^2*(W51-X$50)^2/2 -> -0.9634237808
A52: -0.53 | B52: 0.5886049697 | C52: 4 | D52: =EXP(1.5)*(1+(C52-1.5)+(C52-1.5)^2/2) -> 29.69119009 | E52: 2 | F52: =EXP(1.5)*(1+(E52-1.5)+(E52-1.5)^2/2+(E52-1.5)^3/6) -> 7.376113262 | H52: -1.60 | I52: -0.9995065604 | L52: 1 | M52: =SIN(M$49)+COS(M$49)*(L52-M$49)-SIN(M$49)*(L52-M$49)^2/2-COS(M$49)*(L52-M$49)^3/6 -> 0.8400056572 | O52: -1.60 | P52: -0.03141075908 | Q52: 0 | R52: =COS(R$50)*(1-(Q52-R$50)^2/2)-SIN(R$50)*(Q52-R$50) -> 1.007597511 | U52: 0.54 | V52: -0.6143360001 | W52: 1 | X52: =LN(X$50) + 1/X$50*(W52-X$50) -1/X$50^2*(W52-X$50)^2/2 -> 0.01657621922
A53: -0.50 | B53: 0.6065306597 | E53: 4 | F53: =EXP(1.5)*(1+(E53-1.5)+(E53-1.5)^2/2+(E53-1.5)^3/6) -> 41.36225538 | H53: -1.57 | I53: -1 | L53: =PI() -> 3.141592654 | M53: =SIN(M$49)+COS(M$49)*(L53-M$49)-SIN(M$49)*(L53-M$49)^2/2-COS(M$49)*(L53-M$49)^3/6 -> -1.571166671 | O53: -1.57 | P53: -5.711902305e-15 | Q53: =PI() -> 3.141592654 | R53: =COS(R$50)*(1-(Q53-R$50)^2/2)-SIN(R$50)*(Q53-R$50) -> -3.450755132 | U53: 0.55 | V53: -0.5978370008 | W53: 1.9 | X53: =LN(X$50) + 1/X$50*(W53-X$50) -1/X$50^2*(W53-X$50)^2/2 -> 0.6365762192
A54: -0.47 | B54: 0.6250022683 | C54: c = | D54: 2 | E54: c = | F54: 2 | H54: -1.54 | I54: -0.9995065604 | J54: c = | K54: 1 | L54: c = | M54: 1 | O54: -1.54 | P54: 0.03141075908 | U54: 0.56 | V54: -0.5816058058
A55: -0.44 | B55: 0.6440364211 | C55: -2 | D55: =EXP(2)*(1+(C55-2)+(C55-2)^2/2) -> 36.94528049 | E55: -2 | F55: =EXP(2)*(1+(E55-2)+(E55-2)^2/2+(E55-2)^3/6) -> -41.87131789 | G55: series 12 | H55: -1.51 | I55: -0.9980267284 | J55: -3 | K55: =SIN(K$54) +COS(K$54)*((J55-K$54)) -> -1.319738239 | L55: =-PI() -> -3.141592654 | M55: =SIN(M$54)+COS(M$54)*(L55-M$54)-SIN(M$54)*(L55-M$54)^2/2-COS(M$54)*(L55-M$54)^3/6 -> -2.215861099 | O55: -1.51 | P55: 0.06279051953 | Q55: c = | R55: 1 | S55: series 11 | U55: 0.57 | V55: -0.5656338603 | W55: c = | X55: 1.7 | Y55: series 11
A56: -0.41 | B56: 0.6636502501 | C56: 1 | D56: =EXP(2)*(1+(C56-2)+(C56-2)^2/2) -> 3.694528049 | E56: 0 | F56: =EXP(2)*(1+(E56-2)+(E56-2)^2/2+(E56-2)^3/6) -> -2.4630187 | H56: -1.48 | I56: -0.9955619646 | J56: 3 | K56: =SIN(K$54) +COS(K$54)*((J56-K$54)) -> 1.922075597 | L56: -1 | M56: =SIN(M$54)+COS(M$54)*(L56-M$54)-SIN(M$54)*(L56-M$54)^2/2-COS(M$54)*(L56-M$54)^3/6 -> -1.201672522 | O56: -1.48 | P56: 0.09410831332 | Q56: =-PI() -> -3.141592654 | R56: =COS(R$55)*(1-(Q56-R$55)^2/2)-SIN(R$55)*(Q56-R$55) -> -0.608513561 | U56: 0.58 | V56: -0.5499130125 | W56: 0.1 | X56: =LN(X$55) + 1/X$55*(W56-X$55) -1/X$55^2*(W56-X$55)^2/2 -> -0.8534547939
A57: -0.38 | B57: 0.6838614092 | C57: 4 | D57: =EXP(2)*(1+(C57-2)+(C57-2)^2/2) -> 36.94528049 | E57: 2 | F57: =EXP(2)*(1+(E57-2)+(E57-2)^2/2+(E57-2)^3/6) -> 7.389056099 | H57: -1.45 | I57: -0.9921147013 | L57: 1 | M57: =SIN(M$54)+COS(M$54)*(L57-M$54)-SIN(M$54)*(L57-M$54)^2/2-COS(M$54)*(L57-M$54)^3/6 -> 0.8414709848 | O57: -1.45 | P57: 0.1253332336 | Q57: 0 | R57: =COS(R$55)*(1-(Q57-R$55)^2/2)-SIN(R$55)*(Q57-R$55) -> 1.111622138 | U57: 0.59 | V57: -0.5344354894 | W57: 1 | X57: =LN(X$55) + 1/X$55*(W57-X$55) -1/X$55^2*(W57-X$55)^2/2 -> 0.03408845867
A58: -0.35 | B58: 0.7046880897 | E58: 4 | F58: =EXP(2)*(1+(E58-2)+(E58-2)^2/2+(E58-2)^3/6) -> 46.79735529 | H58: -1.41 | I58: -0.9876883406 | L58: =PI() -> 3.141592654 | M58: =SIN(M$54)+COS(M$54)*(L58-M$54)-SIN(M$54)*(L58-M$54)^2/2-COS(M$54)*(L58-M$54)^3/6 -> -0.8155874783 | O58: -1.41 | P58: 0.156434465 | Q58: =PI() -> 3.141592654 | R58: =COS(R$55)*(1-(Q58-R$55)^2/2)-SIN(R$55)*(Q58-R$55) -> -2.500812179 | U58: 0.60 | V58: -0.5191938734 | W58: 1.9 | X58: =LN(X$55) + 1/X$55*(W58-X$55) -1/X$55^2*(W58-X$55)^2/2 -> 0.6413548947
A59: -0.32 | B59: 0.7261490371 | C59: c = | D59: 2.5 | E59: c = | F59: 2.5 | H59: -1.38 | I59: -0.9822872507 | J59: c = | K59: 1.5 | L59: c = | M59: 1.5 | O59: -1.38 | P59: 0.1873813146 | U59: 0.60 | V59: -0.504181081
A60: -0.29 | B60: 0.7482635676 | C60: -2 | D60: =EXP(2.5)*(1+(C60-2.5)+(C60-2.5)^2/2) -> 80.70902249 | E60: -2 | F60: =EXP(2.5)*(1+(E60-2.5)+(E60-2.5)^2/2+(E60-2.5)^3/6) -> -104.3126045 | G60: series 13 | H60: -1.35 | I60: -0.9759167619 | J60: -3 | K60: =SIN(K$59) +COS(K$59)*((J60-K$59)) -> 0.6791775791 | L60: =-PI() -> -3.141592654 | M60: =SIN(M$59)+COS(M$59)*(L60-M$59)-SIN(M$59)*(L60-M$59)^2/2-COS(M$59)*(L60-M$59)^3/6 -> -8.897088715 | O60: -1.35 | P60: 0.2181432414 | Q60: c = | R60: 1.5 | S60: series 12 | U60: 0.61 | V60: -0.489390343 | W60: c = | X60: 1.9 | Y60: series 12
A61: -0.26 | B61: 0.7710515858 | C61: 1 | D61: =EXP(2.5)*(1+(C61-2.5)+(C61-2.5)^2/2) -> 7.614058725 | E61: 0 | F61: =EXP(2.5)*(1+(E61-2.5)+(E61-2.5)^2/2+(E61-2.5)^3/6) -> -11.928692 | H61: -1.32 | I61: -0.9685831611 | J61: 3 | K61: =SIN(K$59) +COS(K$59)*((J61-K$59)) -> 1.103600789 | L61: -1 | M61: =SIN(M$59)+COS(M$59)*(L61-M$59)-SIN(M$59)*(L61-M$59)^2/2-COS(M$59)*(L61-M$59)^3/6 -> -2.112308388 | O61: -1.32 | P61: 0.2486898872 | Q61: =-PI() -> -3.141592654 | R61: =COS(R$60)*(1-(Q61-R$60)^2/2)-SIN(R$60)*(Q61-R$60) -> 3.938707944 | U61: 0.62 | V61: -0.4748151862 | W61: 0.1 | X61: =LN(X$60) + 1/X$60*(W61-X$60) -1/X$60^2*(W61-X$60)^2/2 -> -0.7542679975
A62: -0.23 | B62: 0.7945336025 | C62: 4 | D62: =EXP(2.5)*(1+(C62-2.5)+(C62-2.5)^2/2) -> 44.16154061 | E62: 2 | F62: =EXP(2.5)*(1+(E62-2.5)+(E62-2.5)^2/2+(E62-2.5)^3/6) -> 7.360256768 | H62: -1.29 | I62: -0.9602936857 | L62: 1 | M62: =SIN(M$59)+COS(M$59)*(L62-M$59)-SIN(M$59)*(L62-M$59)^2/2-COS(M$59)*(L62-M$59)^3/6 -> 0.8389132041 | O62: -1.29 | P62: 0.278991106 | Q62: 0 | R62: =COS(R$60)*(1-(Q62-R$60)^2/2)-SIN(R$60)*(Q62-R$60) -> 1.48740033 | U62: 0.63 | V62: -0.4604494164 | W62: 1 | X62: =LN(X$60) + 1/X$60*(W62-X$60) -1/X$60^2*(W62-X$60)^2/2 -> 0.05598131
A63: -0.20 | B63: 0.8187307531 | E63: 4 | F63: =EXP(2.5)*(1+(E63-2.5)+(E63-2.5)^2/2+(E63-2.5)^3/6) -> 51.01419346 | H63: -1.26 | I63: -0.9510565163 | L63: =PI() -> 3.141592654 | M63: =SIN(M$59)+COS(M$59)*(L63-M$59)-SIN(M$59)*(L63-M$59)^2/2-COS(M$59)*(L63-M$59)^3/6 -> -0.2825758995 | O63: -1.26 | P63: 0.3090169944 | Q63: =PI() -> 3.141592654 | R63: =COS(R$60)*(1-(Q63-R$60)^2/2)-SIN(R$60)*(Q63-R$60) -> -1.662055481 | U63: 0.64 | V63: -0.4462871026 | W63: 1.9 | X63: =LN(X$60) + 1/X$60*(W63-X$60) -1/X$60^2*(W63-X$60)^2/2 -> 0.6418538862
A64: -0.17 | B64: 0.8436648166 | C64: c = | D64: 3 | E64: c = | F64: 3 | H64: -1.23 | I64: -0.940880769 | J64: c = | K64: 2 | L64: c = | M64: 2 | O64: -1.23 | P64: 0.3387379202 | U64: 0.65 | V64: -0.4323225623
A65: -0.14 | B65: 0.8693582354 | C65: -2 | D65: =EXP(3)*(1+(C65-3)+(C65-3)^2/2) -> 170.7270638 | E65: -2 | F65: =EXP(3)*(1+(E65-3)+(E65-3)^2/2+(E65-3)^3/6) -> -247.7216221 | H65: -1.19 | I65: -0.9297764859 | J65: -3 | K65: =SIN(K$64) +COS(K$64)*((J65-K$64)) -> 2.99003161 | L65: =-PI() -> -3.141592654 | M65: =SIN(M$64)+COS(M$64)*(L65-M$64)-SIN(M$64)*(L65-M$64)^2/2-COS(M$64)*(L65-M$64)^3/6 -> -18.3974492 | O65: -1.19 | P65: 0.3681245527 | Q65: c = | R65: 2 | S65: series 13 | U65: 0.66 | V65: -0.4185503477
A66: -0.11 | B66: 0.8958341353 | C66: 1 | D66: =EXP(3)*(1+(C66-3)+(C66-3)^2/2) -> 20.08553692 | E66: 0 | F66: =EXP(3)*(1+(E66-3)+(E66-3)^2/2+(E66-3)^3/6) -> -40.17107385 | H66: -1.16 | I66: -0.9177546257 | J66: 3 | K66: =SIN(K$59) +COS(K$59)*((J66-K$59)) -> 1.103600789 | L66: -1 | M66: =SIN(M$64)+COS(M$64)*(L66-M$64)-SIN(M$64)*(L66-M$64)^2/2-COS(M$64)*(L66-M$64)^3/6 -> -3.806761249 | O66: -1.16 | P66: 0.3971478906 | Q66: =-PI() -> -3.141592654 | R66: =COS(R$65)*(1-(Q66-R$65)^2/2)-SIN(R$65)*(Q66-R$65) -> 9.75971382 | U66: 0.67 | V66: -0.4049652331
A67: -0.08 | B67: 0.9231163464 | C67: 4 | D67: =EXP(3)*(1+(C67-3)+(C67-3)^2/2) -> 50.21384231 | E67: 2 | F67: =EXP(3)*(1+(E67-3)+(E67-3)^2/2+(E67-3)^3/6) -> 6.695178974 | H67: -1.13 | I67: -0.9048270525 | L67: 1 | M67: =SIN(M$64)+COS(M$64)*(L67-M$64)-SIN(M$64)*(L67-M$64)^2/2-COS(M$64)*(L67-M$64)^3/6 -> 0.8014377439 | O67: -1.13 | P67: 0.4257792916 | Q67: 0 | R67: =COS(R$65)*(1-(Q67-R$65)^2/2)-SIN(R$65)*(Q67-R$65) -> 2.23474169 | U67: 0.68 | V67: -0.3915622029
A68: =A67+dx -> -0.05 | B68: =EXP(A68) -> 0.9512294245 | E68: 4 | F68: =EXP(3)*(1+(E68-3)+(E68-3)^2/2+(E68-3)^3/6) -> 53.5614318 | H68: =H67+dxx -> -1.10 | I68: =SIN(H68) -> -0.8910065242 | L68: =PI() -> 3.141592654 | M68: =SIN(M$64)+COS(M$64)*(L68-M$64)-SIN(M$64)*(L68-M$64)^2/2-COS(M$64)*(L68-M$64)^3/6 -> -0.05509839259 | O68: =O67+dxx -> -1.10 | P68: =COS(O68) -> 0.4539904997 | Q68: =PI() -> 3.141592654 | R68: =COS(R$65)*(1-(Q68-R$65)^2/2)-SIN(R$65)*(Q68-R$65) -> -1.18302579 | U68: =U67+dxxx -> 0.69 | V68: =LN(U68) -> -0.3783364407
A69: -0.02 | B69: 0.9801986733 | C69: c = | D69: 3.5 | E69: c = | F69: 3.5 | H69: -1.07 | I69: -0.87630668 | J69: c = | K69: 2.5 | L69: c = | M69: 2.5 | O69: -1.07 | P69: 0.4817536741 | U69: 0.69 | V69: -0.3652833185
A70: 0.01 | B70: 1.010050167 | C70: -2 | D70: =EXP(3.5)*(1+(C70-3.5)+(C70-3.5)^2/2) -> 351.8516771 | E70: -2 | F70: =EXP(3.5)*(1+(E70-3.5)+(E70-3.5)^2/2+(E70-3.5)^3/6) -> -566.4122095 | H70: -1.04 | I70: -0.860742027 | J70: -3 | K70: =SIN(K$69) +COS(K$69)*((J70-K$69)) -> 5.00476203 | L70: =-PI() -> -3.141592654 | M70: =SIN(M$69)+COS(M$69)*(L70-M$69)-SIN(M$69)*(L70-M$69)^2/2-COS(M$69)*(L70-M$69)^3/6 -> -28.3810721 | O70: -1.04 | P70: 0.5090414158 | Q70: c = | R70: 2.5 | S70: series 14 | U70: 0.70 | V70: -0.3523983872
A71: 0.04 | B71: 1.040810774 | C71: 1 | D71: =EXP(3.5)*(1+(C71-3.5)+(C71-3.5)^2/2) -> 53.81260943 | E71: 0 | F71: =EXP(3.5)*(1+(E71-3.5)+(E71-3.5)^2/2+(E71-3.5)^3/6) -> -116.5939871 | H71: -1.01 | I71: -0.8443279255 | J71: 3 | K71: =SIN(K$69) +COS(K$69)*((J71-K$69)) -> 0.1979003363 | L71: -1 | M71: =SIN(M$69)+COS(M$69)*(L71-M$69)-SIN(M$69)*(L71-M$69)^2/2-COS(M$69)*(L71-M$69)^3/6 -> -5.988005837 | O71: -1.01 | P71: 0.535826795 | Q71: =-PI() -> -3.141592654 | R71: =COS(R$70)*(1-(Q71-R$70)^2/2)-SIN(R$70)*(Q71-R$70) -> 15.32441875 | U71: 0.71 | V71: -0.3396773676
A72: 0.07 | B72: 1.072508181 | C72: 4 | D72: =EXP(3.5)*(1+(C72-3.5)+(C72-3.5)^2/2) -> 53.81260943 | E72: 2 | F72: =EXP(3.5)*(1+(E72-3.5)+(E72-3.5)^2/2+(E72-3.5)^3/6) -> 2.069715747 | H72: -0.97 | I72: -0.8270805743 | L72: 1 | M72: =SIN(M$69)+COS(M$69)*(L72-M$69)-SIN(M$69)*(L72-M$69)^2/2-COS(M$69)*(L72-M$69)^3/6 -> 0.6762631216 | O72: -0.97 | P72: 0.5620833779 | Q72: 0 | R72: =COS(R$70)*(1-(Q72-R$70)^2/2)-SIN(R$70)*(Q72-R$70) -> 3.198610543 | U72: 0.72 | V72: -0.3271161417
A73: 0.10 | B73: 1.105170918 | E73: 4 | F73: =EXP(3.5)*(1+(E73-3.5)+(E73-3.5)^2/2+(E73-3.5)^3/6) -> 54.50251468 | H73: -0.94 | I73: -0.8090169944 | L73: =PI() -> 3.141592654 | M73: =SIN(M$69)+COS(M$69)*(L73-M$69)-SIN(M$69)*(L73-M$69)^2/2-COS(M$69)*(L73-M$69)^3/6 -> -0.003449127011 | O73: -0.94 | P73: 0.5877852523 | Q73: =PI() -> 3.141592654 | R73: =COS(R$70)*(1-(Q73-R$70)^2/2)-SIN(R$70)*(Q73-R$70) -> -1.020227114 | U73: 0.73 | V73: -0.3147107448
A74: 0.13 | B74: 1.138828383 | H74: -0.91 | I74: -0.7901550124 | J74: c = | K74: 3 | L74: c = | M74: 3 | O74: -0.91 | P74: 0.6129070537 | U74: 0.74 | V74: -0.302457358
A75: 0.16 | B75: 1.173510871 | H75: -0.88 | I75: -0.7705132428 | L75: =-PI() -> -3.141592654 | M75: =SIN(M$74)+COS(M$74)*(L75-M$74)-SIN(M$74)*(L75-M$74)^2/2-COS(M$74)*(L75-M$74)^3/6 -> -34.66311721 | O75: -0.88 | P75: 0.6374239897 | Q75: c = | R75: 3 | S75: series 15 | U75: 0.75 | V75: -0.290352301
A76: 0.19 | B76: 1.209249598 | H76: -0.85 | I76: -0.7501110696 | L76: -1 | M76: =SIN(M$74)+COS(M$74)*(L76-M$74)-SIN(M$74)*(L76-M$74)^2/2-COS(M$74)*(L76-M$74)^3/6 -> -7.587790034 | O76: -0.85 | P76: 0.6613118653 | Q76: =-PI() -> -3.141592654 | R76: =COS(R$75)*(1-(Q76-R$75)^2/2)-SIN(R$75)*(Q76-R$75) -> 18.54755196 | U76: 0.76 | V76: -0.2783920255
A77: 0.22 | B77: 1.246076731 | H77: -0.82 | I77: -0.7289686274 | L77: 1 | M77: =SIN(M$74)+COS(M$74)*(L77-M$74)-SIN(M$74)*(L77-M$74)^2/2-COS(M$74)*(L77-M$74)^3/6 -> 0.5188749897 | O77: -0.82 | P77: 0.6845471059 | Q77: 0 | R77: =COS(R$75)*(1-(Q77-R$75)^2/2)-SIN(R$75)*(Q77-R$75) -> 3.888333762 | U77: 0.77 | V77: -0.2665731092
A78: 0.25 | B78: 1.284025417 | H78: -0.79 | I78: -0.7071067812 | L78: =PI() -> 3.141592654 | M78: =SIN(M$74)+COS(M$74)*(L78-M$74)-SIN(M$74)*(L78-M$74)^2/2-COS(M$74)*(L78-M$74)^3/6 -> -1.892541362e-06 | O78: -0.79 | P78: 0.7071067812 | Q78: =PI() -> 3.141592654 | R78: =COS(R$75)*(1-(Q78-R$75)^2/2)-SIN(R$75)*(Q78-R$75) -> -1.000050131 | U78: 0.78 | V78: -0.2548922496
A79: 0.28 | B79: 1.323129812 | H79: -0.75 | I79: -0.6845471059 | O79: -0.75 | P79: 0.7289686274 | U79: 0.78 | V79: -0.2433462586
A80: 0.31 | B80: 1.363425114 | H80: -0.72 | I80: -0.6613118653 | O80: -0.72 | P80: 0.7501110696 | U80: 0.79 | V80: -0.2319320573
A81: 0.34 | B81: 1.404947591 | H81: -0.69 | I81: -0.6374239897 | O81: -0.69 | P81: 0.7705132428 | U81: 0.80 | V81: -0.2206466711
A82: 0.37 | B82: 1.447734615 | H82: -0.66 | I82: -0.6129070537 | O82: -0.66 | P82: 0.7901550124 | U82: 0.81 | V82: -0.2094872249
A83: 0.40 | B83: 1.491824698 | H83: -0.63 | I83: -0.5877852523 | O83: -0.63 | P83: 0.8090169944 | U83: 0.82 | V83: -0.1984509387
A84: 0.43 | B84: 1.537257524 | H84: -0.60 | I84: -0.5620833779 | O84: -0.60 | P84: 0.8270805743 | U84: 0.83 | V84: -0.1875351238
A85: 0.46 | B85: 1.584073985 | H85: -0.57 | I85: -0.535826795 | O85: -0.57 | P85: 0.8443279255 | U85: 0.84 | V85: -0.1767371785
A86: 0.49 | B86: 1.63231622 | H86: -0.53 | I86: -0.5090414158 | O86: -0.53 | P86: 0.860742027 | U86: 0.85 | V86: -0.1660545843
A87: 0.52 | B87: 1.68202765 | H87: -0.50 | I87: -0.4817536741 | O87: -0.50 | P87: 0.87630668 | U87: 0.86 | V87: -0.1554849028
A88: 0.55 | B88: 1.733253018 | H88: -0.47 | I88: -0.4539904997 | O88: -0.47 | P88: 0.8910065242 | U88: 0.87 | V88: -0.1450257721
A89: 0.58 | B89: 1.786038431 | H89: -0.44 | I89: -0.4257792916 | O89: -0.44 | P89: 0.9048270525 | U89: 0.87 | V89: -0.1346749033
A90: 0.61 | B90: 1.840431399 | H90: -0.41 | I90: -0.3971478906 | O90: -0.41 | P90: 0.9177546257 | U90: 0.88 | V90: -0.1244300784
A91: 0.64 | B91: 1.896480879 | H91: -0.38 | I91: -0.3681245527 | O91: -0.38 | P91: 0.9297764859 | U91: 0.89 | V91: -0.1142891464
A92: 0.67 | B92: 1.954237321 | H92: -0.35 | I92: -0.3387379202 | O92: -0.35 | P92: 0.940880769 | U92: 0.90 | V92: -0.1042500214
A93: 0.70 | B93: 2.013752707 | H93: -0.31 | I93: -0.3090169944 | O93: -0.31 | P93: 0.9510565163 | U93: 0.91 | V93: -0.09431067947
A94: 0.73 | B94: 2.075080608 | H94: -0.28 | I94: -0.278991106 | O94: -0.28 | P94: 0.9602936857 | U94: 0.92 | V94: -0.08446915663
A95: 0.76 | B95: 2.13827622 | H95: -0.25 | I95: -0.2486898872 | O95: -0.25 | P95: 0.9685831611 | U95: 0.93 | V95: -0.0747235462
A96: 0.79 | B96: 2.203396426 | H96: -0.22 | I96: -0.2181432414 | O96: -0.22 | P96: 0.9759167619 | U96: 0.94 | V96: -0.06507199674
A97: 0.82 | B97: 2.270499838 | H97: -0.19 | I97: -0.1873813146 | O97: -0.19 | P97: 0.9822872507 | U97: 0.95 | V97: -0.05551270993
A98: 0.85 | B98: 2.339646852 | H98: -0.16 | I98: -0.156434465 | O98: -0.16 | P98: 0.9876883406 | U98: 0.96 | V98: -0.0460439385
A99: 0.88 | B99: 2.410899706 | H99: -0.13 | I99: -0.1253332336 | O99: -0.13 | P99: 0.9921147013 | U99: 0.96 | V99: -0.03666398437
A100: =A99+dx -> 0.91 | B100: 2.484322533 | H100: =H99+dxx -> -0.09 | I100: -0.09410831332 | O100: =O99+dxx -> -0.09 | P100: 0.9955619646 | U100: =U99+dxxx -> 0.97 | V100: -0.0273711968
A101: 0.94 | B101: 2.559981418 | H101: -0.06 | I101: -0.06279051953 | O101: -0.06 | P101: 0.9980267284 | U101: 0.98 | V101: -0.01816397063
A102: 0.97 | B102: 2.637944459 | H102: -0.03 | I102: -0.03141075908 | O102: -0.03 | P102: 0.9995065604 | U102: 0.99 | V102: -0.009040744652
A103: 1.00 | B103: 2.718281828 | H103: -0.00 | I103: -4.385380947e-15 | O103: -0.00 | P103: 1 | U103: 1.00 | V103: 6.661338148e-16
A104: 1.03 | B104: 2.801065835 | H104: 0.03 | I104: 0.03141075908 | O104: 0.03 | P104: 0.9995065604 | U104: 1.01 | V104: 0.008959741371
A105: 1.06 | B105: 2.886370989 | H105: 0.06 | I105: 0.06279051953 | O105: 0.06 | P105: 0.9980267284 | U105: 1.02 | V105: 0.01783991813
A106: 1.09 | B106: 2.974274073 | H106: 0.09 | I106: 0.09410831332 | O106: 0.09 | P106: 0.9955619646 | U106: 1.03 | V106: 0.02664193095
A107: 1.12 | B107: 3.064854203 | H107: 0.13 | I107: 0.1253332336 | O107: 0.13 | P107: 0.9921147013 | U107: 1.04 | V107: 0.03536714384
A108: 1.15 | B108: 3.15819291 | H108: 0.16 | I108: 0.156434465 | O108: 0.16 | P108: 0.9876883406 | U108: 1.05 | V108: 0.04401688542
A109: 1.18 | B109: 3.254374203 | H109: 0.19 | I109: 0.1873813146 | O109: 0.19 | P109: 0.9822872507 | U109: 1.05 | V109: 0.05259245012
A110: 1.21 | B110: 3.353484653 | H110: 0.22 | I110: 0.2181432414 | O110: 0.22 | P110: 0.9759167619 | U110: 1.06 | V110: 0.06109509936
A111: 1.24 | B111: 3.455613465 | H111: 0.25 | I111: 0.2486898872 | O111: 0.25 | P111: 0.9685831611 | U111: 1.07 | V111: 0.06952606265
A112: 1.27 | B112: 3.560852562 | H112: 0.28 | I112: 0.278991106 | O112: 0.28 | P112: 0.9602936857 | U112: 1.08 | V112: 0.07788653866
A113: 1.30 | B113: 3.669296668 | H113: 0.31 | I113: 0.3090169944 | O113: 0.31 | P113: 0.9510565163 | U113: 1.09 | V113: 0.08617769624
A114: 1.33 | B114: 3.781043388 | H114: 0.35 | I114: 0.3387379202 | O114: 0.35 | P114: 0.940880769 | U114: 1.10 | V114: 0.09440067542
A115: 1.36 | B115: 3.896193302 | H115: 0.38 | I115: 0.3681245527 | O115: 0.38 | P115: 0.9297764859 | U115: 1.11 | V115: 0.1025565883
A116: 1.39 | B116: 4.014850053 | H116: 0.41 | I116: 0.3971478906 | O116: 0.41 | P116: 0.9177546257 | U116: 1.12 | V116: 0.1106465201
A117: 1.42 | B117: 4.13712044 | H117: 0.44 | I117: 0.4257792916 | O117: 0.44 | P117: 0.9048270525 | U117: 1.13 | V117: 0.1186715297
A118: 1.45 | B118: 4.263114515 | H118: 0.47 | I118: 0.4539904997 | O118: 0.47 | P118: 0.8910065242 | U118: 1.14 | V118: 0.1266326509
A119: 1.48 | B119: 4.392945681 | H119: 0.50 | I119: 0.4817536741 | O119: 0.50 | P119: 0.87630668 | U119: 1.14 | V119: 0.134530893
A120: 1.51 | B120: 4.526730794 | H120: 0.53 | I120: 0.5090414158 | O120: 0.53 | P120: 0.860742027 | U120: 1.15 | V120: 0.1423672413
A121: 1.54 | B121: 4.664590271 | H121: 0.57 | I121: 0.535826795 | O121: 0.57 | P121: 0.8443279255 | U121: 1.16 | V121: 0.1501426584
A122: 1.57 | B122: 4.806648194 | H122: 0.60 | I122: 0.5620833779 | O122: 0.60 | P122: 0.8270805743 | U122: 1.17 | V122: 0.1578580846
A123: 1.60 | B123: 4.953032424 | H123: 0.63 | I123: 0.5877852523 | O123: 0.63 | P123: 0.8090169944 | U123: 1.18 | V123: 0.1655144385
A124: 1.63 | B124: 5.103874719 | H124: 0.66 | I124: 0.6129070537 | O124: 0.66 | P124: 0.7901550124 | U124: 1.19 | V124: 0.1731126177
A125: 1.66 | B125: 5.259310844 | H125: 0.69 | I125: 0.6374239897 | O125: 0.69 | P125: 0.7705132428 | U125: 1.20 | V125: 0.1806534997
A126: 1.69 | B126: 5.419480705 | H126: 0.72 | I126: 0.6613118653 | O126: 0.72 | P126: 0.7501110696 | U126: 1.21 | V126: 0.1881379421
A127: 1.72 | B127: 5.584528464 | H127: 0.75 | I127: 0.6845471059 | O127: 0.75 | P127: 0.7289686274 | U127: 1.22 | V127: 0.1955667835
A128: 1.75 | B128: 5.754602676 | H128: 0.79 | I128: 0.7071067812 | O128: 0.79 | P128: 0.7071067812 | U128: 1.23 | V128: 0.202940844
A129: 1.78 | B129: 5.929856419 | H129: 0.82 | I129: 0.7289686274 | O129: 0.82 | P129: 0.6845471059 | U129: 1.23 | V129: 0.2102609255
A130: 1.81 | B130: 6.110447432 | H130: 0.85 | I130: 0.7501110696 | O130: 0.85 | P130: 0.6613118653 | U130: 1.24 | V130: 0.2175278125
A131: 1.84 | B131: 6.296538261 | H131: 0.88 | I131: 0.7705132428 | O131: 0.88 | P131: 0.6374239897 | U131: 1.25 | V131: 0.2247422727
A132: =A131+dx -> 1.87 | B132: =EXP(A132) -> 6.488296399 | H132: =H131+dxx -> 0.91 | I132: =SIN(H132) -> 0.7901550124 | O132: =O131+dxx -> 0.91 | P132: =COS(O132) -> 0.6129070537 | U132: =U131+dxxx -> 1.26 | V132: =LN(U132) -> 0.231905057
A133: 1.90 | B133: 6.685894442 | H133: 0.94 | I133: 0.8090169944 | O133: 0.94 | P133: 0.5877852523 | U133: 1.27 | V133: 0.2390169005
A134: 1.93 | B134: 6.889510242 | H134: 0.97 | I134: 0.8270805743 | O134: 0.97 | P134: 0.5620833779 | U134: 1.28 | V134: 0.2460785226
A135: 1.96 | B135: 7.099327065 | H135: 1.01 | I135: 0.8443279255 | O135: 1.01 | P135: 0.535826795 | U135: 1.29 | V135: 0.2530906277
A136: 1.99 | B136: 7.315533762 | H136: 1.04 | I136: 0.860742027 | O136: 1.04 | P136: 0.5090414158 | U136: 1.30 | V136: 0.2600539053
A137: 2.02 | B137: 7.538324934 | H137: 1.07 | I137: 0.87630668 | O137: 1.07 | P137: 0.4817536741 | U137: 1.31 | V137: 0.2669690309
A138: 2.05 | B138: 7.767901106 | H138: 1.10 | I138: 0.8910065242 | O138: 1.10 | P138: 0.4539904997 | U138: 1.32 | V138: 0.2738366656
A139: 2.08 | B139: 8.004468914 | H139: 1.13 | I139: 0.9048270525 | O139: 1.13 | P139: 0.4257792916 | U139: 1.32 | V139: 0.2806574575
A140: 2.11 | B140: 8.248241285 | H140: 1.16 | I140: 0.9177546257 | O140: 1.16 | P140: 0.3971478906 | U140: 1.33 | V140: 0.2874320412
A141: 2.14 | B141: 8.499437629 | H141: 1.19 | I141: 0.9297764859 | O141: 1.19 | P141: 0.3681245527 | U141: 1.34 | V141: 0.2941610385
A142: 2.17 | B142: 8.758284041 | H142: 1.23 | I142: 0.940880769 | O142: 1.23 | P142: 0.3387379202 | U142: 1.35 | V142: 0.300845059
A143: 2.20 | B143: 9.025013499 | H143: 1.26 | I143: 0.9510565163 | O143: 1.26 | P143: 0.3090169944 | U143: 1.36 | V143: 0.3074846997
A144: 2.23 | B144: 9.299866079 | H144: 1.29 | I144: 0.9602936857 | O144: 1.29 | P144: 0.278991106 | U144: 1.37 | V144: 0.3140805463
A145: 2.26 | B145: 9.583089167 | H145: 1.32 | I145: 0.9685831611 | O145: 1.32 | P145: 0.2486898872 | U145: 1.38 | V145: 0.3206331726
A146: 2.29 | B146: 9.874937681 | H146: 1.35 | I146: 0.9759167619 | O146: 1.35 | P146: 0.2181432414 | U146: 1.39 | V146: 0.3271431413
A147: 2.32 | B147: 10.17567431 | H147: 1.38 | I147: 0.9822872507 | O147: 1.38 | P147: 0.1873813146 | U147: 1.40 | V147: 0.3336110043
A148: 2.35 | B148: 10.48556972 | H148: 1.41 | I148: 0.9876883406 | O148: 1.41 | P148: 0.156434465 | U148: 1.41 | V148: 0.3400373028
A149: 2.38 | B149: 10.80490286 | H149: 1.45 | I149: 0.9921147013 | O149: 1.45 | P149: 0.1253332336 | U149: 1.41 | V149: 0.3464225675
A150: 2.41 | B150: 11.13396115 | H150: 1.48 | I150: 0.9955619646 | O150: 1.48 | P150: 0.09410831332 | U150: 1.42 | V150: 0.3527673191
A151: 2.44 | B151: 11.47304074 | H151: 1.51 | I151: 0.9980267284 | O151: 1.51 | P151: 0.06279051953 | U151: 1.43 | V151: 0.3590720685
A152: 2.47 | B152: 11.82244685 | H152: 1.54 | I152: 0.9995065604 | O152: 1.54 | P152: 0.03141075908 | U152: 1.44 | V152: 0.365337317
A153: 2.50 | B153: 12.18249396 | H153: 1.57 | I153: 1 | O153: 1.57 | P153: 3.169881892e-15 | U153: 1.45 | V153: 0.3715635564
A154: 2.53 | B154: 12.55350614 | H154: 1.60 | I154: 0.9995065604 | O154: 1.60 | P154: -0.03141075908 | U154: 1.46 | V154: 0.3777512695
A155: 2.56 | B155: 12.93581732 | H155: 1.63 | I155: 0.9980267284 | O155: 1.63 | P155: -0.06279051953 | U155: 1.47 | V155: 0.3839009302
A156: 2.59 | B156: 13.3297716 | H156: 1.67 | I156: 0.9955619646 | O156: 1.67 | P156: -0.09410831332 | U156: 1.48 | V156: 0.3900130035
A157: 2.62 | B157: 13.73572359 | H157: 1.70 | I157: 0.9921147013 | O157: 1.70 | P157: -0.1253332336 | U157: 1.49 | V157: 0.3960879463
A158: 2.65 | B158: 14.15403865 | H158: 1.73 | I158: 0.9876883406 | O158: 1.73 | P158: -0.156434465 | U158: 1.49 | V158: 0.4021262068
A159: 2.68 | B159: 14.5850933 | H159: 1.76 | I159: 0.9822872507 | O159: 1.76 | P159: -0.1873813146 | U159: 1.50 | V159: 0.4081282255
A160: 2.71 | B160: 15.02927551 | H160: 1.79 | I160: 0.9759167619 | O160: 1.79 | P160: -0.2181432414 | U160: 1.51 | V160: 0.4140944348
A161: 2.74 | B161: 15.4869851 | H161: 1.82 | I161: 0.9685831611 | O161: 1.82 | P161: -0.2486898872 | U161: 1.52 | V161: 0.4200252594
A162: 2.77 | B162: 15.95863401 | H162: 1.85 | I162: 0.9602936857 | O162: 1.85 | P162: -0.278991106 | U162: 1.53 | V162: 0.4259211167
A163: 2.80 | B163: 16.44464677 | H163: 1.88 | I163: 0.9510565163 | O163: 1.88 | P163: -0.3090169944 | U163: 1.54 | V163: 0.4317824164
A164: =A163+dx -> 2.83 | B164: 16.94546082 | H164: =H163+dxx -> 1.92 | I164: 0.940880769 | O164: =O163+dxx -> 1.92 | P164: -0.3387379202 | U164: =U163+dxxx -> 1.55 | V164: 0.4376095614
A165: 2.86 | B165: 17.46152694 | H165: 1.95 | I165: 0.9297764859 | O165: 1.95 | P165: -0.3681245527 | U165: 1.56 | V165: 0.4434029474
A166: 2.89 | B166: 17.9933096 | H166: 1.98 | I166: 0.9177546257 | O166: 1.98 | P166: -0.3971478906 | U166: 1.57 | V166: 0.4491629634
A167: 2.92 | B167: 18.54128746 | H167: 2.01 | I167: 0.9048270525 | O167: 2.01 | P167: -0.4257792916 | U167: 1.58 | V167: 0.4548899914
A168: 2.95 | B168: 19.10595373 | H168: 2.04 | I168: 0.8910065242 | O168: 2.04 | P168: -0.4539904997 | U168: 1.58 | V168: 0.4605844073
A169: 2.98 | B169: 19.68781664 | H169: 2.07 | I169: 0.87630668 | O169: 2.07 | P169: -0.4817536741 | U169: 1.59 | V169: 0.4662465804
A170: 3.01 | B170: 20.28739993 | H170: 2.10 | I170: 0.860742027 | O170: 2.10 | P170: -0.5090414158 | U170: 1.60 | V170: 0.4718768736
A171: 3.04 | B171: 20.90524324 | H171: 2.14 | I171: 0.8443279255 | O171: 2.14 | P171: -0.535826795 | U171: 1.61 | V171: 0.4774756441
A172: 3.07 | B172: 21.54190268 | H172: 2.17 | I172: 0.8270805743 | O172: 2.17 | P172: -0.5620833779 | U172: 1.62 | V172: 0.4830432428
A173: 3.10 | B173: 22.19795128 | H173: 2.20 | I173: 0.8090169944 | O173: 2.20 | P173: -0.5877852523 | U173: 1.63 | V173: 0.4885800148
A174: 3.13 | B174: 22.87397954 | H174: 2.23 | I174: 0.7901550124 | O174: 2.23 | P174: -0.6129070537 | U174: 1.64 | V174: 0.4940862998
A175: 3.16 | B175: 23.57059593 | H175: 2.26 | I175: 0.7705132428 | O175: 2.26 | P175: -0.6374239897 | U175: 1.65 | V175: 0.4995624315
A176: 3.19 | B176: 24.28842744 | H176: 2.29 | I176: 0.7501110696 | O176: 2.29 | P176: -0.6613118653 | U176: 1.66 | V176: 0.5050087384
A177: 3.22 | B177: 25.02812018 | H177: 2.32 | I177: 0.7289686274 | O177: 2.32 | P177: -0.6845471059 | U177: 1.67 | V177: 0.5104255437
A178: 3.25 | B178: 25.79033992 | H178: 2.36 | I178: 0.7071067812 | O178: 2.36 | P178: -0.7071067812 | U178: 1.67 | V178: 0.5158131653
A179: 3.28 | B179: 26.5757727 | H179: 2.39 | I179: 0.6845471059 | O179: 2.39 | P179: -0.7289686274 | U179: 1.68 | V179: 0.5211719158
A180: 3.31 | B180: 27.38512547 | H180: 2.42 | I180: 0.6613118653 | O180: 2.42 | P180: -0.7501110696 | U180: 1.69 | V180: 0.5265021032
A181: 3.34 | B181: 28.21912671 | H181: 2.45 | I181: 0.6374239897 | O181: 2.45 | P181: -0.7705132428 | U181: 1.70 | V181: 0.5318040302
A182: 3.37 | B182: 29.07852706 | H182: 2.48 | I182: 0.6129070537 | O182: 2.48 | P182: -0.7901550124 | U182: 1.71 | V182: 0.5370779949
A183: 3.40 | B183: 29.96410005 | H183: 2.51 | I183: 0.5877852523 | O183: 2.51 | P183: -0.8090169944 | U183: 1.72 | V183: 0.5423242908
A184: 3.43 | B184: 30.87664275 | H184: 2.54 | I184: 0.5620833779 | O184: 2.54 | P184: -0.8270805743 | U184: 1.73 | V184: 0.5475432067
A185: 3.46 | B185: 31.81697651 | H185: 2.58 | I185: 0.535826795 | O185: 2.58 | P185: -0.8443279255 | U185: 1.74 | V185: 0.5527350268
A186: 3.49 | B186: 32.78594771 | H186: 2.61 | I186: 0.5090414158 | O186: 2.61 | P186: -0.860742027 | U186: 1.75 | V186: 0.5579000312
A187: 3.52 | B187: 33.78442846 | H187: 2.64 | I187: 0.4817536741 | O187: 2.64 | P187: -0.87630668 | U187: 1.76 | V187: 0.5630384952
A188: 3.55 | B188: 34.81331749 | H188: 2.67 | I188: 0.4539904997 | O188: 2.67 | P188: -0.8910065242 | U188: 1.76 | V188: 0.5681506904
A189: 3.58 | B189: 35.87354085 | H189: 2.70 | I189: 0.4257792916 | O189: 2.70 | P189: -0.9048270525 | U189: 1.77 | V189: 0.5732368839
A190: 3.61 | B190: 36.96605281 | H190: 2.73 | I190: 0.3971478906 | O190: 2.73 | P190: -0.9177546257 | U190: 1.78 | V190: 0.5782973389
A191: 3.64 | B191: 38.09183673 | H191: 2.76 | I191: 0.3681245527 | O191: 2.76 | P191: -0.9297764859 | U191: 1.79 | V191: 0.5833323146
A192: 3.67 | B192: 39.25190586 | H192: 2.80 | I192: 0.3387379202 | O192: 2.80 | P192: -0.940880769 | U192: 1.80 | V192: 0.5883420662
A193: 3.70 | B193: 40.44730436 | H193: 2.83 | I193: 0.3090169944 | O193: 2.83 | P193: -0.9510565163 | U193: 1.81 | V193: 0.5933268453
A194: 3.73 | B194: 41.67910816 | H194: 2.86 | I194: 0.278991106 | O194: 2.86 | P194: -0.9602936857 | U194: 1.82 | V194: 0.5982868995
A195: 3.76 | B195: 42.94842598 | H195: 2.89 | I195: 0.2486898872 | O195: 2.89 | P195: -0.9685831611 | U195: 1.83 | V195: 0.603222473
A196: =A195+dx -> 3.79 | B196: =EXP(A196) -> 44.25640028 | H196: =H195+dxx -> 2.92 | I196: =SIN(H196) -> 0.2181432414 | O196: =O195+dxx -> 2.92 | P196: =COS(O196) -> -0.9759167619 | U196: =U195+dxxx -> 1.84 | V196: =LN(U196) -> 0.6081338062
A197: 3.82 | B197: 45.60420832 | H197: 2.95 | I197: 0.1873813146 | O197: 2.95 | P197: -0.9822872507 | U197: 1.85 | V197: 0.6130211361
A198: 3.85 | B198: 46.99306323 | H198: 2.98 | I198: 0.156434465 | O198: 2.98 | P198: -0.9876883406 | U198: 1.85 | V198: 0.6178846961
A199: 3.88 | B199: 48.42421507 | H199: 3.02 | I199: 0.1253332336 | O199: 3.02 | P199: -0.9921147013 | U199: 1.86 | V199: 0.6227247163
A200: 3.91 | B200: 49.89895197 | H200: 3.05 | I200: 0.09410831332 | O200: 3.05 | P200: -0.9955619646 | U200: 1.87 | V200: 0.6275414235
... 3 more rows

Sheet Sheet3
A1: =xMin ->  | B1: =9 -> 9
A2: =A1+dx ->  | B2: =9 -> 9
B3: =9 -> 9
B4: =9 -> 9
B5: =9 -> 9
B6: =9 -> 9
B7: =9 -> 9
B8: =9 -> 9
B9: =9 -> 9
B10: =9 -> 9
B11: =9 -> 9
B12: =9 -> 9
B13: =9 -> 9
B14: =9 -> 9
B15: =9 -> 9
B16: =9 -> 9
B17: =9 -> 9
B18: =9 -> 9
B19: =9 -> 9
B20: =9 -> 9
B21: =9 -> 9
B22: =9 -> 9
B23: =9 -> 9
B24: =9 -> 9
B25: =9 -> 9
B26: =9 -> 9
B27: =9 -> 9
B28: =9 -> 9
B29: =9 -> 9
B30: =9 -> 9
B31: =9 -> 9
B32: =9 -> 9
B33: =9 -> 9
B34: =9 -> 9
B35: =9 -> 9
B36: =9 -> 9
B37: =9 -> 9
B38: =9 -> 9
B39: =9 -> 9
B40: =9 -> 9
B41: =9 -> 9
B42: =9 -> 9
B43: =9 -> 9
B44: =9 -> 9
B45: =9 -> 9
B46: =9 -> 9
B47: =9 -> 9
B48: =9 -> 9
B49: =9 -> 9
B50: =9 -> 9
B51: =9 -> 9
B52: =9 -> 9
B53: =9 -> 9
B54: =9 -> 9
B55: =9 -> 9
B56: =9 -> 9
B57: =9 -> 9
B58: =9 -> 9
B59: =9 -> 9
B60: =9 -> 9
B61: =9 -> 9
B62: =9 -> 9
B63: =9 -> 9
B64: =9 -> 9
B65: =9 -> 9
A66: =A65+dx ->  | B66: =9 -> 9
B67: =9 -> 9
B68: =9 -> 9
B69: =9 -> 9
B70: =9 -> 9
B71: =9 -> 9
B72: =9 -> 9
B73: =9 -> 9
B74: =9 -> 9
B75: =9 -> 9
B76: =9 -> 9
B77: =9 -> 9
B78: =9 -> 9
B79: =9 -> 9
B80: =9 -> 9
B81: =9 -> 9
B82: =9 -> 9
B83: =9 -> 9
B84: =9 -> 9
B85: =9 -> 9
B86: =9 -> 9
B87: =9 -> 9
B88: =9 -> 9
B89: =9 -> 9
B90: =9 -> 9
B91: =9 -> 9
B92: =9 -> 9
B93: =9 -> 9
B94: =9 -> 9
B95: =9 -> 9
B96: =9 -> 9
B97: =9 -> 9
B98: =9 -> 9
B99: =9 -> 9
B100: =9 -> 9
B101: =9 -> 9
B102: =9 -> 9
B103: =9 -> 9
B104: =9 -> 9
B105: =9 -> 9
B106: =9 -> 9
B107: =9 -> 9
B108: =9 -> 9
B109: =9 -> 9
B110: =9 -> 9
B111: =9 -> 9
B112: =9 -> 9
B113: =9 -> 9
B114: =9 -> 9
B115: =9 -> 9
B116: =9 -> 9
B117: =9 -> 9
B118: =9 -> 9
B119: =9 -> 9
B120: =9 -> 9
B121: =9 -> 9
B122: =9 -> 9
B123: =9 -> 9
B124: =9 -> 9
B125: =9 -> 9
B126: =9 -> 9
B127: =9 -> 9
B128: =9 -> 9
B129: =9 -> 9
A130: =A129+dx ->  | B130: =9 -> 9
B131: =9 -> 9
B132: =9 -> 9
B133: =9 -> 9
B134: =9 -> 9
B135: =9 -> 9
B136: =9 -> 9
B137: =9 -> 9
B138: =9 -> 9
B139: =9 -> 9
B140: =9 -> 9
B141: =9 -> 9
B142: =9 -> 9
B143: =9 -> 9
B144: =9 -> 9
B145: =9 -> 9
B146: =9 -> 9
B147: =9 -> 9
B148: =9 -> 9
B149: =9 -> 9
B150: =9 -> 9
B151: =9 -> 9
B152: =9 -> 9
B153: =9 -> 9
B154: =9 -> 9
B155: =9 -> 9
B156: =9 -> 9
B157: =9 -> 9
B158: =9 -> 9
B159: =9 -> 9
B160: =9 -> 9
B161: =9 -> 9
B162: =9 -> 9
B163: =9 -> 9
B164: =9 -> 9
B165: =9 -> 9
B166: =9 -> 9
B167: =9 -> 9
B168: =9 -> 9
B169: =9 -> 9
B170: =9 -> 9
B171: =9 -> 9
B172: =9 -> 9
B173: =9 -> 9
B174: =9 -> 9
B175: =9 -> 9
B176: =9 -> 9
B177: =9 -> 9
B178: =9 -> 9
B179: =9 -> 9
B180: =9 -> 9
B181: =9 -> 9
B182: =9 -> 9
B183: =9 -> 9
B184: =9 -> 9
B185: =9 -> 9
B186: =9 -> 9
B187: =9 -> 9
B188: =9 -> 9
B189: =9 -> 9
B190: =9 -> 9
B191: =9 -> 9
B192: =9 -> 9
B193: =9 -> 9
A194: =A193+dx ->  | B194: =9 -> 9
B195: =9 -> 9
B196: =9 -> 9
B197: =9 -> 9
B198: =9 -> 9
B199: =9 -> 9
B200: =9 -> 9
... 803 more rows
